Workbook

Sheet GlobalCost
A1: 2017-05-13 | C1: Hillier & Lieberman, 2005, 8.th ed., p 814-816 | I1: With Visual Basic | M1: *
A2: 03Mar2008 | B2: Queues | D2: "Acme Machine Shop" | H2: See "WaitCost" | M2: *
A3: Cs = | B3: 23 | C3: $ / server / hour | E3: a = | F3: 9.5 | G3: customers / hour | K3: Global cost | M3: *
A4: Cw = | B4: 17 | C4: $ / hour | E4: m = | F4: 4.8 | G4: customers / hour | M4: *
A5: s ? | K5: Min: | M5: *
C6: p0iQ | D6: p0iS | H6: L | I6: E(ServC) | J6: E(WaitC) | K6: =MIN(K9:K12) -> 116.9736644 | M6: *
C7: (sy)s/ | D7: (sum) | I7: E(SC) = | J7: E(WC) = | K7: EG(C) = | M7: *
A8: s | B8: y | C8: [s!(1-y)] | D8: S | E8: p0 | G8: Lq | H8: L | I8: Css | J8: CwL | K8: Css + CwL | M8: *
A9: 2 | B9: =$F$3/(A9*$F$4) -> 0.9895833333 | C9: =(A9*B9)^A9/(FACT(A9)*(1-B9)) -> 188.0208333 | D9: =1+summation(A9*B9,A9-1) -> 2.979166667 | E9: =1/(C9+D9) -> 0.005235602094 | G9: =$E9*$A9^$A9*$B9^($A9+1)/(FACT($A9)*(1-$B9)^2) -> 93.51821553 | H9: =$G9+$A9*$B9 -> 95.4973822 | I9: =$B$3*$A9 -> 46 | J9: =$B$4*$H9 -> 1623.455497 | K9: =$I9+$J9 -> 1669.455497 | M9: *
A10: =A9+1 -> 3 | B10: 0.6597222222 | C10: 3.797189449 | D10: =1+summation(A10*B10,A10-1) -> 4.937717014 | E10: 0.114483195 | G10: =$E10*$A10^$A10*$B10^($A10+1)/(FACT($A10)*(1-$B10)^2) -> 0.8428135942 | H10: =$G10+$A10*$B10 -> 2.821980261 | I10: 69 | J10: =$B$4*$H10 -> 47.97366443 | K10: 116.9736644 | M10: *
A11: 4 | B11: 0.4947916667 | C11: 1.265457967 | D11: =1+summation(A11*B11,A11-1) -> 6.229816201 | E11: 0.1334174011 | G11: 0.1653529974 | H11: 2.144519664 | I11: 92 | J11: 36.45683429 | K11: 128.4568343 | M11: *
A12: 5 | B12: 0.3958333333 | C12: 0.4188647689 | D12: =1+summation(A12*B12,A12-1) -> 6.869136112 | E12: 0.1372118385 | G12: 0.03765485847 | H12: 2.016821525 | I12: 115 | J12: 34.28596593 | K12: 149.2859659 | M12: *
A13: 6 | B13: 0.3298611111 | C13: 0.1245652459 | D13: =1+summation(A13*B13,A13-1) -> 7.122200243 | E13: 0.1379925984 | G13: 0.008460947079 | H13: 1.987627614 | I13: 138 | J13: 33.78966943 | K13: 171.7896694 | M13: *
A14: 7 | B14: 0.2827380952 | C14: 0.03290548329 | D14: =1+summation(A14*B14,A14-1) -> 7.205676258 | E14: 0.1381486092 | G14: 0.001791931292 | H14: 1.980958598 | I14: 161 | J14: 33.67629617 | K14: 194.6762962 | M14: *
A15: 8 | B15: 0.2473958333 | C15: 0.007758393474 | D15: =1+summation(A15*B15,A15-1) -> 7.229278108 | E15: 0.1381781064 | G15: 0.0003524007312 | H15: 1.979519067 | I15: 184 | J15: 33.65182415 | K15: 217.6518241 | M15: *
A16: 40 | B16: 0.04947916667 | C16: 9.325841034e-37 | D16: =1+summation(A16*B16,A16-1) -> 7.23670988 | E16: =EXP(-$F$3/$F$4) -> 0.138184343 | G16: =$E16*$A16^$A16*$B16^($A16+1)/(FACT($A16)*(1-$B16)^2) -> 6.708224411e-39 | H16: =$G16+$A16*$B16 -> 1.979166667 | I16: 920 | J16: =$B$4*$H16 -> 33.64583333 | K16: 953.6458333 | M16: *
M17: *
A18: Example | M18: *
A19: s = | B19: =A14 -> 7 | C19: y = | D19: =B14 -> 0.2827380952 | M19: *
A20: s y = | B20: =B19*D19 -> 1.979166667 | M20: *
A21: S = | B21: =1+summation(B20,A14-1) -> 7.205676258 | C21: USER DEFINED | M21: *
A22: See DEVELOPER / Visual Basic | M22: *
A23: instead of tableau below | M23: *
M24: *
M25: *
M26: *
M27: *
A28: TABLEAU | B28: n = | C28: 0 | D28: =C28+1 -> 1 | E28: 2 | F28: 3 | G28: 4 | H28: 5 | I28: 6 | J28: 7 | K28: S | M28: *
B29: S0s-1[(sy)n/n!] : | C29: =($A9*$B9)^C$28/FACT(C$28) -> 1 | D29: 1.979166667 | K29: =SUM(C29:J29) -> 2.979166667 | M29: *
C30: 1 | D30: 1.979166667 | E30: =($A10*$B10)^E$28/FACT(E$28) -> 1.958550347 | K30: =SUM(C30:J30) -> 4.937717014 | M30: *
C31: 1 | D31: 1.979166667 | E31: 1.958550347 | F31: =($A11*$B11)^F$28/FACT(F$28) -> 1.292099187 | K31: 6.229816201 | M31: *
C32: 1 | D32: 1.979166667 | E32: 1.958550347 | F32: =($A12*$B12)^F$28/FACT(F$28) -> 1.292099187 | G32: =($A12*$B12)^G$28/FACT(G$28) -> 0.6393199104 | K32: 6.869136112 | M32: *
C33: 1 | D33: 1.979166667 | E33: 1.958550347 | F33: =($A13*$B13)^F$28/FACT(F$28) -> 1.292099187 | G33: =($A13*$B13)^G$28/FACT(G$28) -> 0.6393199104 | H33: =($A13*$B13)^H$28/FACT(H$28) -> 0.2530641312 | K33: 7.122200243 | M33: *
C34: 1 | D34: 1.979166667 | E34: 1.958550347 | F34: =($A14*$B14)^F$28/FACT(F$28) -> 1.292099187 | G34: =($A14*$B14)^G$28/FACT(G$28) -> 0.6393199104 | H34: =($A14*$B14)^H$28/FACT(H$28) -> 0.2530641312 | I34: =($A14*$B14)^I$28/FACT(I$28) -> 0.0834760155 | K34: 7.205676258 | M34: *
C35: 1 | D35: 1.979166667 | E35: 1.958550347 | F35: =($A15*$B15)^F$28/FACT(F$28) -> 1.292099187 | G35: =($A15*$B15)^G$28/FACT(G$28) -> 0.6393199104 | H35: =($A15*$B15)^H$28/FACT(H$28) -> 0.2530641312 | I35: =($A15*$B15)^I$28/FACT(I$28) -> 0.0834760155 | J35: =($A15*$B15)^J$28/FACT(J$28) -> 0.02360184962 | K35: 7.229278108 | M35: *
M36: *
A38: * | B38: * | C38: * | D38: * | E38: * | F38: * | G38: * | H38: * | I38: * | J38: * | K38: * | L38: *

Sheet WaitCost
A1: 03Mar2008 | C1: Hillier & Lieberman, 2005, 8.th ed., p 814-816 | H1: See the corresponding course webpage, possibly:
A2: Queues | C2: "Acme Machine Shop" | H2: http://web.ist.utl.pt/~mcasquilho/compute/or/Fx-queues.php
A3: Cs = | B3: 23 | C3: $ / server / hour | E3: a = | F3: 9.5 | G3: customers / hour | J3: Wait cost
A4: Cw = | B4: 17 | C4: $ / hour | E4: m = | F4: 4.8 | G4: customers / hour | J4: Smaller ($): | K4: =K9-GlobalCost!K9 -> -79.16666667
A5: s ? | J5: Min: | K5: =MIN(K9:K12) -> 37.80699777
C6: p0iQ | D6: p0iS | I6: E(ServC) | J6: E(WaitC)
C7: (sy)s/ | D7: (sum) | F7: Idle = | I7: E(SC) = | J7: E(WC) = | K7: EW(C) =
A8: s | B8: y | C8: [s!(1-y)] | D8: S | E8: p0 | F8: s(1 - y) | G8: Lq | I8: CsIdle | J8: CwLq | K8: ... + ...
A9: 2 | B9: =$F$3/(A9*$F$4) -> 0.9895833333 | C9: =(A9*B9)^A9/(FACT(A9)*(1-B9)) -> 188.0208333 | D9: =K19 -> 2.979166667 | E9: =1/(C9+D9) -> 0.005235602094 | F9: =$A9*(1-$B9) -> 0.02083333333 | G9: =$E9*$A9^$A9*$B9^($A9+1)/(FACT($A9)*(1-$B9)^2) -> 93.51821553 | I9: =$B$3*$F9 -> 0.4791666667 | J9: =$B$4*$G9 -> 1589.809664 | K9: =$I9+$J9 -> 1590.288831
A10: =A9+1 -> 3 | B10: 0.6597222222 | C10: 3.797189449 | D10: 4.937717014 | E10: 0.114483195 | F10: =$A10*(1-$B10) -> 1.020833333 | G10: 0.8428135942 | I10: =$B$3*$F10 -> 23.47916667 | J10: =$B$4*$G10 -> 14.3278311 | K10: 37.80699777
A11: 4 | B11: 0.4947916667 | C11: 1.265457967 | D11: 6.229816201 | E11: 0.1334174011 | F11: 2.020833333 | G11: 0.1653529974 | I11: 46.47916667 | J11: =$B$4*$G11 -> 2.811000956 | K11: 49.29016762
A12: 5 | B12: 0.3958333333 | C12: 0.4188647689 | D12: 6.869136112 | E12: 0.1372118385 | F12: 3.020833333 | G12: 0.03765485847 | I12: 69.47916667 | J12: 0.640132594 | K12: 70.11929926
A13: 6 | B13: 0.3298611111 | C13: 0.1245652459 | D13: 7.122200243 | E13: 0.1379925984 | F13: 4.020833333 | G13: 0.008460947079 | I13: 92.47916667 | J13: 0.1438361003 | K13: 92.62300277
A14: 7 | B14: 0.2827380952 | C14: 0.03290548329 | D14: 7.205676258 | E14: 0.1381486092 | F14: 5.020833333 | G14: 0.001791931292 | I14: 115.4791667 | J14: 0.03046283196 | K14: 115.5096295
A15: 8 | B15: 0.2473958333 | C15: 0.007758393474 | D15: 7.229278108 | E15: 0.1381781064 | F15: 6.020833333 | G15: 0.0003524007312 | I15: 138.4791667 | J15: 0.005990812431 | K15: 138.4851575
A16: 40 | B16: 0.04947916667 | C16: 9.325841034e-37 | D16: =EXP($F$3/$F$4) -> 7.23670988 | E16: =EXP(-$F$3/$F$4) -> 0.138184343 | F16: 38.02083333 | G16: 6.708224411e-39 | I16: 874.4791667 | J16: 1.14039815e-37 | K16: 874.4791667
B18: n = | C18: 0 | D18: =C18+1 -> 1 | E18: 2 | F18: 3 | G18: 4 | H18: 5 | I18: 6 | J18: 7
B19: S0s-1[(sy)n/n!] : | C19: =($A9*$B9)^C$18/FACT(C$18) -> 1 | D19: 1.979166667 | K19: =SUM(C19:J19) -> 2.979166667
C20: 1 | D20: 1.979166667 | E20: =($A10*$B10)^E$18/FACT(E$18) -> 1.958550347 | K20: 4.937717014
C21: 1 | D21: 1.979166667 | E21: 1.958550347 | F21: =($A11*$B11)^F$18/FACT(F$18) -> 1.292099187 | K21: 6.229816201
C22: 1 | D22: 1.979166667 | E22: 1.958550347 | F22: =($A12*$B12)^F$18/FACT(F$18) -> 1.292099187 | G22: =($A12*$B12)^G$18/FACT(G$18) -> 0.6393199104 | K22: 6.869136112
C23: 1 | D23: 1.979166667 | E23: 1.958550347 | F23: =($A13*$B13)^F$18/FACT(F$18) -> 1.292099187 | G23: =($A13*$B13)^G$18/FACT(G$18) -> 0.6393199104 | H23: =($A13*$B13)^H$18/FACT(H$18) -> 0.2530641312 | K23: 7.122200243
C24: 1 | D24: 1.979166667 | E24: 1.958550347 | F24: =($A14*$B14)^F$18/FACT(F$18) -> 1.292099187 | G24: =($A14*$B14)^G$18/FACT(G$18) -> 0.6393199104 | H24: =($A14*$B14)^H$18/FACT(H$18) -> 0.2530641312 | I24: =($A14*$B14)^I$18/FACT(I$18) -> 0.0834760155 | K24: 7.205676258
C25: 1 | D25: 1.979166667 | E25: 1.958550347 | F25: =($A15*$B15)^F$18/FACT(F$18) -> 1.292099187 | G25: =($A15*$B15)^G$18/FACT(G$18) -> 0.6393199104 | H25: =($A15*$B15)^H$18/FACT(H$18) -> 0.2530641312 | I25: =($A15*$B15)^I$18/FACT(I$18) -> 0.0834760155 | J25: =($A15*$B15)^J$18/FACT(J$18) -> 0.02360184962 | K25: 7.229278108
